bitfinex/quotes_SOLUSD_20220307
["timestamp","ask_amount","ask_price","bid_price","bid_amount"]
[1646668818082,35.9555368,85.091,85.035,0.25]
[1646668818282,5.877,85.09,85.035,0.25]
[1646668818582,0.25,85.089,85.035,0.25]
[1646668818782,5.878,85.088,85.035,0.25]
[1646668818984,0.25,85.087,85.035,0.25]
[1646668819287,5.878,85.086,85.035,0.25]
[1646668819684,23.0884,85.085,85.013,0.25]
[1646668819886,5.878,85.084,85.013,0.25]
[1646668820187,0.25,85.083,85.013,0.25]
[1646668820387,5.878,85.082,85.013,0.25]
[1646668820589,0.25,85.081,85.02,17.6411]
[1646668820788,5.878,85.08,85.021,6.25]
[1646668820987,0.25,85.079,85.022,23.5268]
[1646668821189,5.878,85.078,85.023,6.25]
[1646668821390,41.44260363,85.077,85.023,6.25]
[1646668821588,5.878,85.076,85.023,6.25]
[1646668821988,122.578,85.076,85.023,6.0]
[1646668822189,6.25,85.075,85.001,23.5268]
[1646668822387,5.878,85.074,85.001,23.5268]
[1646668822589,6.25,85.073,85.001,23.5268]
[1646668822791,5.878,85.072,85.001,23.5268]
[1646668822989,6.25,85.071,85.001,23.5268]
[1646668823188,5.878,85.07,85.001,23.5268]
[1646668823390,0.25,85.069,85.012,0.25]
[1646668823690,5.878,85.068,85.012,0.25]
[1646668823889,6.25,85.069,85.012,0.25]
[1646668823890,6.25,85.067,85.012,0.25]
[1646668824090,6.0,85.067,85.012,0.25]
[1646668824291,0.25,85.066,85.012,0.25]
[1646668825295,0.25,85.068,85.012,0.25]
[1646668825693,5.878,85.084,85.012,6.25]
[1646668825897,3.15474572,85.091,85.016,70.06]
[1646668826093,3.15474572,85.091,85.021,70.06]
[1646668826293,3.15474572,85.091,85.04,17.6313]
[1646668826492,3.15474572,85.091,85.041,6.25]
[1646668827093,6.39410753,85.111,85.041,6.25]
[1646668827293,6.39410753,85.111,85.042,29.0431]
[1646668827492,6.39410753,85.111,85.043,0.25]
[1646668827693,6.39410753,85.111,85.043,6.25]
[1646668827896,6.39410753,85.111,85.05,17.6338]
[1646668828095,6.39410753,85.111,85.051,6.25]
[1646668828694,1.58044014,85.093,85.051,6.25]
[1646668829494,1.58044014,85.094,85.06,17.6324]
[1646668829695,1.58044014,85.094,85.061,6.25]
[1646668830098,1.58044014,85.094,85.061,0.25]
[1646668830697,1.58044014,85.094,85.054,0.25]
[1646668830999,1.58044014,85.093,85.054,0.25]
[1646668831597,1.58044014,85.094,85.054,0.25]
[1646668832013,1.58044014,85.094,85.06,17.6325]
[1646668832213,1.58044014,85.097,85.061,0.25]
[1646668832813,1.58044014,85.096,85.061,0.25]
[1646668833214,1.58044014,85.097,85.07,17.6301]
[1646668833415,1.58044014,85.102,85.071,6.25]
[1646668833615,1.58044014,85.107,85.071,13.77]
[1646668833816,1.58044014,85.114,85.072,0.25]
[1646668834015,1.58044014,85.12,85.072,93.6813]
[1646668834215,1.58044014,85.12,85.08,17.6264]
[1646668834418,12.26808465,85.165,85.083,105.0]
[1646668834719,2.83613526,85.187,85.095,70.06]
[1646668834720,3.16919883,85.173,85.095,70.06]
[1646668834917,1.58459942,85.173,85.105,70.06]
[1646668835217,59.8132129,85.24,85.104,121.7]
[1646668835218,1.58540831,85.176,85.121,186.76]
[1646668835417,1.58540831,85.206,85.131,70.06]
[1646668835620,1.58540831,85.207,85.141,70.06]
[1646668835817,1.58540831,85.208,85.142,128.8897]
[1646668836017,1.58540831,85.209,85.142,128.8897]
[1646668836418,1.58540831,85.21,85.142,128.8897]
[1646668836819,1.58540831,85.21,85.15,17.6096]
[1646668837018,1.58540831,85.21,85.151,12.119]
[1646668837319,6.0,85.209,85.151,12.119]
[1646668837518,36.99140506,85.217,85.151,12.119]
[1646668837519,6.0,85.216,85.151,12.119]
[1646668841723,11.869,85.216,85.151,12.119]
[1646668844224,128.569,85.216,85.151,11.869]
[1646668844426,0.25,85.215,85.151,5.869]
[1646668844624,5.869,85.214,85.132,5.869]
[1646668844825,6.25,85.213,85.132,5.869]
[1646668845024,5.87,85.212,85.132,5.869]
[1646668845424,116.7,85.216,85.132,5.869]
[1646668845624,36.99140506,85.217,85.133,6.25]
[1646668845825,6.25,85.216,85.134,5.87]
[1646668846030,5.87,85.215,85.135,6.25]
[1646668846225,6.25,85.216,85.133,6.25]
[1646668846226,6.0,85.214,85.136,12.12]
[1646668846426,0.25,85.216,85.136,5.87]
[1646668846627,0.25,85.216,85.14,17.6136]
[1646668846826,0.25,85.216,85.141,6.25]
[1646668847026,36.99140506,85.217,85.142,5.87]
[1646668847228,36.99140506,85.217,85.143,6.25]
[1646668847428,36.99140506,85.217,85.144,5.869]
[1646668847629,36.99140506,85.217,85.145,6.25]
[1646668847829,36.99140506,85.217,85.146,5.869]
[1646668848029,5.869,85.229,85.15,17.6115]
[1646668848229,1.58540831,85.239,85.152,70.06]
[1646668848230,6.0,85.228,85.152,70.06]
[1646668848429,6.0,85.237,85.153,12.119]
[1646668848633,5.868,85.236,85.153,12.119]
[1646668848830,6.0,85.235,85.153,12.119]
[1646668849031,42.22134599,85.234,85.16,58.6834]
[1646668849232,6.0,85.233,85.161,6.25]
[1646668849438,116.95,85.232,85.161,6.25]
[1646668849732,116.7,85.23,85.161,0.25]
[1646668849931,116.7,85.228,85.161,0.25]
[1646668850134,116.7,85.226,85.161,0.25]
[1646668850334,116.7,85.224,85.155,0.25]
[1646668850538,11.869,85.223,85.155,0.25]
[1646668851934,11.869,85.223,85.16,17.6102]
[1646668852133,11.869,85.223,85.161,6.25]
[1646668852334,11.869,85.223,85.162,6.25]
[1646668852536,11.869,85.223,85.155,0.25]
[1646668853741,0.25,85.222,85.154,6.0]
[1646668853938,17.6137,85.22,85.154,6.0]
[1646668854139,42.79861733,85.218,85.154,6.0]
[1646668854338,6.119,85.217,85.154,6.0]
[1646668854739,5.869,85.217,85.154,6.0]
[1646668855039,42.79861733,85.218,85.153,5.869]
[1646668855240,122.7,85.217,85.153,5.869]
[1646668855440,122.7,85.217,85.079,12.26136285]
[1646668855441,116.7,85.209,85.079,12.26136285]
[1646668855642,116.7,85.207,85.084,48.1514]
[1646668855842,1.58540831,85.2,85.084,48.1514]
[1646668856041,116.7,85.179,85.084,48.1514]
[1646668856246,116.7,85.177,85.084,48.1514]
[1646668856542,128.823,85.176,85.084,48.1514]
[1646668856842,6.25,85.175,85.085,6.25]
[1646668857045,116.7,85.173,85.085,0.25]
[1646668857245,116.7,85.169,85.085,6.25]
[1646668857444,116.7,85.167,85.085,6.25]
[1646668857645,35.21104396,85.165,85.085,6.25]
[1646668857848,12.123,85.164,85.086,70.06]
[1646668858167,6.25,85.164,85.087,6.25]
[1646668858348,6.0,85.164,85.09,204.3869]
[1646668858546,35.21104396,85.165,85.092,70.06]
[1646668858750,35.21104396,85.165,85.093,6.25]
[1646668859348,35.21104396,85.165,85.094,6.0]
[1646668859547,35.21104396,85.165,85.095,0.25]
[1646668859747,35.21104396,85.165,85.093,0.25]
[1646668860147,35.21104396,85.165,85.11,17.6205]
[1646668860448,35.21104396,85.165,85.111,6.25]
[1646668861649,1.58540831,85.167,85.121,70.06]
[1646668861849,1.58540831,85.176,85.122,0.25]
[1646668862049,1.58540831,85.177,85.122,0.25]
[1646668862249,1.58540831,85.176,85.122,0.25]
[1646668862450,1.58540831,85.183,85.122,0.25]
[1646668862650,1.58540831,85.193,85.13,17.6186]
[1646668862951,1.58540831,85.196,85.131,6.25]
[1646668863250,1.58540831,85.183,85.131,6.25]
[1646668863451,1.58540831,85.183,85.131,0.25]
[1646668863753,5.871,85.216,85.15,17.611]
[1646668863754,1.58540831,85.191,85.15,17.611]
[1646668863954,1.58540831,85.192,85.151,6.25]
[1646668864351,1.58540831,85.194,85.151,6.25]
[1646668864552,1.58540831,85.189,85.151,0.25]
[1646668864751,1.58540831,85.186,85.151,0.25]
[1646668864953,1.58540831,85.183,85.151,6.25]
[1646668865152,46.90115911,85.195,85.151,6.25]
[1646668865153,1.58540831,85.184,85.151,6.25]
[1646668865553,1.58540831,85.182,85.151,0.25]
[1646668865774,46.90115911,85.195,85.133,187.01]
[1646668865775,1.58540831,85.183,85.133,187.01]
[1646668866075,1.58540831,85.185,85.141,70.06]
[1646668866277,1.58540831,85.185,85.142,76.31]
[1646668866675,1.58540831,85.193,85.145,116.7]
[1646668866875,1.58540831,85.192,85.151,70.06]
[1646668867076,1.58540831,85.192,85.153,70.06]
[1646668867276,1.58540831,85.192,85.155,70.06]
[1646668867476,1.58540831,85.192,85.154,6.25]
[1646668867477,1.58540831,85.196,85.157,70.06]
[1646668867676,1.58540831,85.197,85.159,70.06]
[1646668867876,1.58540831,85.198,85.17,17.6093]
[1646668868076,1.58540831,85.198,85.171,6.25]
[1646668868779,1.58540831,85.198,85.171,0.25]
[1646668869178,1.58540831,85.198,85.18,17.6075]
[1646668869379,1.58540831,85.198,85.181,0.25]
[1646668869581,1.58540831,85.198,85.181,6.25]
[1646668869981,1.58540831,85.195,85.181,0.25]
[1646668870581,1.58540831,85.199,85.171,6.25]
[1646668870782,1.58540831,85.198,85.171,6.25]
[1646668870981,1.58540831,85.199,85.171,0.25]
[1646668871584,1.58540831,85.199,85.18,17.6075]
[1646668871883,1.58540831,85.206,85.181,0.25]
[1646668872083,1.58540831,85.215,85.181,0.25]
[1646668872283,1.58540831,85.217,85.181,0.25]
[1646668872484,1.58540831,85.22,85.181,0.25]
[1646668872683,1.58540831,85.22,85.19,17.6036]
[1646668872886,1.58540831,85.22,85.191,0.25]
[1646668873384,1.58540831,85.221,85.191,6.25]
[1646668873685,1.58540831,85.223,85.191,6.25]
[1646668875287,1.58540831,85.225,85.2,17.6026]
[1646668875492,1.58540831,85.232,85.201,6.25]
[1646668876001,1.58540831,85.231,85.201,6.25]
[1646668877191,1.58540831,85.228,85.201,6.25]
[1646668877393,1.58540831,85.228,85.201,0.25]
[1646668877691,1.58540831,85.23,85.192,0.25]
[1646668877892,1.58540831,85.23,85.191,6.0]
[1646668878092,1.58540831,85.23,85.143,70.06]
[1646668878297,1.58540831,85.222,85.174,6.0]
[1646668879096,1.58540831,85.221,85.174,6.0]
[1646668879297,1.58540831,85.223,85.175,0.25]
[1646668879496,1.58540831,85.222,85.175,0.25]
[1646668879795,1.58540831,85.222,85.174,0.25]
[1646668880094,1.58540831,85.222,85.151,70.06]
[1646668880095,1.58540831,85.224,85.17,17.609]
[1646668880496,1.58540831,85.224,85.13,58.7057]
[1646668880695,1.58540831,85.21,85.124,47.0079]
[1646668880901,6.119,85.223,85.124,47.0079]
[1646668880902,1.58540831,85.207,85.139,6.0]
[1646668881096,1.58540831,85.205,85.125,6.0]
[1646668881296,1.58540831,85.206,85.125,6.0]
[1646668881502,39.90611363,85.209,85.125,6.0]
[1646668881503,1.58540831,85.203,85.125,6.0]
[1646668881698,1.58540831,85.196,85.124,47.0079]
[1646668881896,1.58540831,85.193,85.126,6.0]
[1646668882096,1.58540831,85.193,85.125,6.0]
[1646668882097,6.25,85.192,85.125,6.0]
[1646668882297,1.58540831,85.189,85.125,6.0]
[1646668882497,0.25,85.188,85.125,6.0]
[1646668882696,5.871,85.187,85.126,0.25]
[1646668882896,0.25,85.186,85.126,0.25]
[1646668883096,5.871,85.185,85.112,0.25]
[1646668883596,5.871,85.185,85.104,6.0]
[1646668883797,0.25,85.184,85.104,6.0]
[1646668883999,6.25,85.184,85.104,6.0]
[1646668884297,1.58540831,85.182,85.103,48.8071]
[1646668884597,116.7,85.179,85.103,48.8071]
[1646668884803,116.7,85.177,85.103,48.8071]
[1646668885001,116.7,85.175,85.073,12.26937783]
[1646668885200,1.58540831,85.173,85.075,70.06]
[1646668885400,6.25,85.172,85.075,70.06]
[1646668885600,116.7,85.17,85.092,6.0]
[1646668885804,17.6267,85.16,85.076,6.0]
[1646668886006,17.6267,85.16,85.06,93.5127]
[1646668886007,128.823,85.159,85.075,6.0]
[1646668886303,128.823,85.159,85.058,30.67888449]
[1646668886503,130.40840831,85.159,85.059,6.0]
[1646668887200,17.6301,85.15,85.061,70.06]
[1646668887402,46.84794681,85.149,85.063,70.06]
[1646668887601,46.84794681,85.149,85.065,70.06]
[1646668887900,46.84794681,85.149,85.067,70.06]
[1646668888100,40.97294681,85.149,85.069,70.06]
[1646668888301,40.97294681,85.149,85.071,70.06]
[1646668888502,40.97294681,85.149,85.072,76.31]
[1646668888804,40.97294681,85.149,85.08,17.6278]
[1646668889003,40.97294681,85.149,85.081,6.25]
[1646668889401,5.873,85.148,85.081,6.25]
[1646668889605,6.25,85.147,85.081,6.25]
[1646668889808,5.873,85.146,85.081,6.25]
[1646668890103,6.0,85.145,85.081,6.25]
[1646668890305,5.873,85.144,85.082,6.0]
[1646668890604,17.6306,85.14,85.083,0.25]
[1646668890806,17.6306,85.14,85.081,0.25]
[1646668890807,5.873,85.139,85.081,0.25]
[1646668891208,0.25,85.138,85.081,0.25]
[1646668891407,43.45495144,85.136,85.081,0.25]
[1646668891608,43.45495144,85.136,85.072,0.25]
[1646668891807,43.45495144,85.136,85.08,17.6275]
[1646668892007,43.45495144,85.136,85.081,0.25]
[1646668892207,43.45495144,85.136,85.072,0.25]
[1646668892808,5.875,85.135,85.072,0.25]
[1646668893009,5.875,85.135,85.064,0.25]
[1646668893809,0.25,85.134,85.064,0.25]
[1646668894009,5.875,85.133,85.056,0.25]
[1646668894214,0.25,85.132,85.056,0.25]
[1646668894411,5.875,85.131,85.056,0.25]
[1646668894609,0.25,85.13,85.056,0.25]
[1646668894812,5.875,85.129,85.056,0.25]
[1646668895012,0.25,85.128,85.06,17.6319]
[1646668895313,0.25,85.128,85.061,6.25]
[1646668895813,122.95,85.128,85.032,70.06]
[1646668896013,41.57273095,85.119,85.042,6.0]
[1646668896214,12.126,85.118,85.042,6.0]
[1646668897012,12.126,85.118,85.043,0.25]
[1646668898414,17.6369,85.11,85.043,0.25]
[1646668898615,0.25,85.109,85.043,0.25]
[1646668898815,6.25,85.109,85.043,0.25]
[1646668899214,5.877,85.108,85.043,0.25]
[1646668899440,0.25,85.107,85.043,0.25]
[1646668899636,6.25,85.107,85.043,0.25]
[1646668899833,39.13026246,85.106,85.043,0.25]
[1646668900034,0.25,85.105,85.043,0.25]
[1646668900435,6.25,85.105,85.043,0.25]
[1646668904842,12.127,85.105,85.043,0.25]
[1646668906044,5.877,85.109,85.05,17.6342]
[1646668906244,3.17081662,85.168,85.05,17.6342]
[1646668906245,5.876,85.126,85.052,70.06]
[1646668906442,5.876,85.134,85.053,6.0]
[1646668906642,5.875,85.154,85.054,0.25]
[1646668906843,5.875,85.158,85.054,0.25]
[1646668907044,39.22712794,85.141,85.07,17.6244]
[1646668907246,0.25,85.14,85.071,6.25]
[1646668907644,0.25,85.14,85.072,70.06]
[1646668907846,6.25,85.155,85.073,6.25]
[1646668908047,5.873,85.154,85.08,17.6273]
[1646668908346,0.25,85.153,85.081,6.25]
[1646668908546,5.873,85.152,85.081,6.25]
[1646668908748,0.25,85.151,85.081,6.25]
[1646668909146,0.25,85.151,85.081,0.25]
[1646668909346,6.25,85.151,85.073,0.25]
[1646668909547,5.873,85.15,85.073,0.25]
[1646668909748,0.25,85.149,85.073,0.25]
[1646668909946,17.6298,85.14,85.073,0.25]
[1646668910149,49.93407922,85.139,85.073,0.25]
[1646668910449,116.7,85.138,85.073,0.25]
[1646668910652,6.125,85.137,85.073,0.25]
[1646668910850,0.25,85.136,85.073,0.25]
[1646668911749,0.25,85.136,85.074,5.875]
[1646668911949,0.25,85.137,85.075,6.25]
[1646668912151,0.25,85.137,85.076,5.875]
[1646668912351,0.25,85.138,85.077,6.25]
[1646668912550,0.25,85.138,85.078,5.873]
[1646668912751,0.25,85.138,85.079,0.25]
[1646668913050,0.25,85.138,85.08,5.873]
[1646668913250,0.25,85.138,85.081,0.25]
[1646668913453,0.25,85.138,85.082,5.873]
[1646668913652,0.25,85.138,85.083,0.25]
[1646668913951,0.25,85.138,85.084,5.873]
[1646668914151,0.25,85.138,85.085,0.25]
[1646668914351,0.25,85.138,85.086,5.873]
[1646668914554,0.25,85.138,85.087,0.25]
[1646668914853,0.25,85.138,85.088,5.873]
[1646668915051,0.25,85.138,85.089,0.25]
[1646668915852,0.25,85.138,85.071,24.9723]
[1646668915853,116.95,85.138,85.08,5.873]
[1646668916052,1.58540831,85.132,85.068,5.873]
[1646668916252,17.6317,85.13,85.069,6.0]
[1646668916453,6.25,85.129,85.068,6.0]
[1646668916655,7.58540831,85.129,85.068,6.0]
[1646668916854,0.25,85.128,85.068,6.0]
[1646668917054,0.25,85.128,85.069,0.25]
[1646668917254,116.95,85.128,85.069,0.25]
[1646668917457,116.7,85.119,85.046,24.5653]
[1646668917654,34.5637,85.12,85.047,5.875]
[1646668917655,163.17151831,85.116,85.047,5.875]
[1646668917954,13.71140831,85.115,85.047,5.875]
[1646668918354,17.6383,85.11,85.047,5.875]
[1646668918554,12.126,85.109,85.047,5.875]
[1646668918755,12.126,85.109,85.048,0.25]
[1646668919356,116.7,85.108,85.032,5.876]
[1646668919555,116.7,85.106,85.031,5.877]
[1646668919757,12.127,85.105,85.032,6.0]
[1646668919961,17.6382,85.1,85.033,5.877]
[1646668920158,46.03407152,85.099,85.034,6.0]
[1646668920459,46.03407152,85.099,85.035,5.877]
[1646668920660,0.25,85.098,85.036,6.0]
[1646668920859,0.25,85.098,85.037,6.127]
[1646668921059,46.03407152,85.099,85.038,6.0]
[1646668921262,46.03407152,85.099,85.039,0.25]
[1646668921459,46.03407152,85.099,85.04,17.6354]
[1646668921660,46.03407152,85.099,85.041,12.127]
[1646668921860,46.03407152,85.099,85.042,6.25]
[1646668922061,46.03407152,85.099,85.043,5.877]
[1646668922263,5.877,85.119,85.044,6.25]
[1646668922467,0.25,85.118,85.044,6.25]
[1646668922664,5.876,85.117,85.044,6.25]
[1646668922861,16.93,85.12,85.05,17.6335]
[1646668923069,16.93,85.12,85.051,6.25]
[1646668923267,39.23751633,85.119,85.051,6.25]
[1646668923465,39.23751633,85.119,85.052,5.876]
[1646668923664,39.23751633,85.119,85.053,6.25]
[1646668923865,1.58540831,85.136,85.054,5.876]
[1646668924066,1.58540831,85.139,85.061,70.06]
[1646668924266,5.875,85.138,85.066,116.7]
[1646668924470,1.58540831,85.148,85.074,116.7]
[1646668924671,1.58540831,85.155,85.091,70.06]
[1646668924867,43.25831775,85.153,85.092,82.183]
[1646668925070,43.25831775,85.153,85.1,17.6199]
[1646668925266,43.25831775,85.153,85.101,12.123]
[1646668925889,43.25831775,85.153,85.101,6.25]
[1646668926089,43.25831775,85.153,85.101,0.25]
[1646668926289,0.25,85.152,85.093,6.123]
[1646668926489,7.45840831,85.151,85.093,0.25]
[1646668926688,1.83540831,85.15,85.092,0.25]
[1646668926888,1.83540831,85.15,85.091,24.6433]
[1646668926889,7.45840831,85.149,85.091,24.6433]
[1646668927089,5.873,85.149,85.1,17.6233]
[1646668927294,3.17081662,85.18,85.102,70.06]
[1646668927295,1.58540831,85.162,85.102,70.06]
[1646668927494,1.58540831,85.162,85.103,6.0]
[1646668927693,1.58540831,85.172,85.103,6.0]
[1646668927892,1.58540831,85.176,85.104,192.632]
[1646668928093,41.83055516,85.176,85.12,17.6142]
[1646668928292,1.58540831,85.192,85.121,12.122]
[1646668928493,1.58540831,85.192,85.121,35.4956]
[1646668928892,1.58540831,85.191,85.121,35.4956]
[1646668929297,47.46312972,85.19,85.121,35.4956]
[1646668930200,122.821,85.189,85.121,29.6236]
[1646668930401,122.821,85.189,85.121,23.6236]
[1646668930696,1.58540831,85.185,85.121,23.6236]
[1646668930896,116.7,85.176,85.121,0.25]
[1646668931096,34.5536,85.17,85.106,6.122]
[1646668931297,6.0,85.169,85.106,0.25]
[1646668931497,16.93,85.17,85.101,70.06]
[1646668931699,16.93,85.17,85.103,70.06]
[1646668931902,16.93,85.17,85.104,6.25]
[1646668932098,16.93,85.17,85.11,17.6214]
[1646668932299,0.25,85.169,85.111,0.25]
[1646668932702,0.25,85.169,85.092,22.958]
[1646668932900,6.25,85.169,85.092,22.958]
[1646668933301,17.6255,85.16,85.092,22.958]
[1646668933501,50.50398972,85.159,85.093,5.873]
[1646668933701,5.873,85.158,85.094,6.0]
[1646668933901,6.25,85.157,85.093,6.0]
[1646668934303,116.7,85.149,85.083,6.0]
[1646668934503,16.93,85.14,85.056,6.0]
[1646668934704,41.90439768,85.139,85.057,5.875]
[1646668934906,47.77939768,85.139,85.056,5.875]
[1646668935508,116.7,85.138,85.056,5.875]
[1646668935713,116.7,85.136,85.055,46.054]
[1646668935905,12.125,85.135,85.055,46.054]
[1646668936108,6.25,85.137,85.056,11.875]
[1646668936406,17.6315,85.13,85.056,6.0]
[1646668936608,45.0619981,85.119,85.056,6.0]
[1646668936808,50.9379981,85.119,85.057,0.25]
[1646668937008,45.0619981,85.119,85.058,5.876]
[1646668937211,45.0619981,85.119,85.059,6.25]
[1646668937408,45.0619981,85.119,85.06,17.6323]
[1646668937609,45.0619981,85.119,85.061,6.25]
[1646668938008,45.0619981,85.119,85.062,5.876]
[1646668938209,45.0619981,85.119,85.063,6.25]
[1646668938409,45.0619981,85.119,85.064,5.876]
[1646668938609,45.0619981,85.119,85.07,17.6295]
[1646668938809,45.0619981,85.119,85.071,6.125]
[1646668939209,45.0619981,85.119,85.071,0.25]
[1646668940009,45.0619981,85.119,85.056,6.25]
[1646668940809,5.876,85.118,85.056,6.25]
[1646668941012,5.876,85.118,85.06,17.632]
[1646668941210,5.876,85.118,85.061,0.25]
[1646668941609,116.95,85.117,85.018,24.54830325]
[1646668941811,116.95,85.117,84.964,648.44242866]
[1646668941812,211.66,85.1,84.971,70.06]
[1646668942012,125.78613526,85.117,84.985,17.3979]
[1646668942013,116.7,85.089,84.985,17.3979]
[1646668942211,34.5757,85.08,84.99,17.6458]
[1646668942511,54.58550038,85.079,84.992,70.06]
[1646668942712,48.58550038,85.079,84.993,5.878]
[1646668943113,48.58550038,85.079,84.994,6.0]
[1646668943315,6.0,85.078,84.996,186.76]
[1646668943511,48.58550038,85.079,84.998,70.06]
[1646668943713,16.93,85.08,85.011,70.06]
[1646668943912,16.93,85.1,85.017,116.7]
[1646668944113,16.93,85.1,85.02,186.76]
[1646668944313,16.93,85.1,85.022,70.06]
[1646668944513,16.93,85.1,85.03,70.06]
[1646668944712,35.59389943,85.099,85.032,70.06]
[1646668944912,35.59389943,85.099,85.033,6.0]
[1646668945113,35.59389943,85.099,85.034,0.25]
[1646668946113,35.59389943,85.099,85.04,17.6347]
[1646668946315,35.59389943,85.099,85.041,6.25]
[1646668946714,35.59389943,85.099,85.041,0.25]
[1646668947417,35.59389943,85.099,85.024,0.25]
[1646668948019,16.93,85.1,85.024,187.01]
[1646668948217,16.93,85.1,85.026,186.76]
[1646668948417,16.93,85.1,85.04,17.6348]
[1646668948616,16.93,85.1,85.041,76.31]
[1646668948817,16.93,85.1,85.043,70.06]
[1646668949117,5.877,85.133,85.059,70.06]
[1646668949319,5.875,85.149,85.061,70.06]
[1646668949517,5.875,85.149,85.08,17.6217]
[1646668949717,5.875,85.149,85.081,6.25]
[1646668949917,37.0744295,85.148,85.081,6.25]
[1646668950117,5.873,85.147,85.081,6.25]
[1646668950620,9.08613526,85.146,85.081,0.25]
[1646668950819,17.6299,85.14,85.064,0.25]
[1646668951019,45.03981435,85.129,85.063,0.25]
[1646668951218,5.875,85.128,85.063,6.25]
[1646668952024,5.875,85.128,85.07,17.6295]
[1646668952220,5.875,85.128,85.071,0.25]
[1646668953919,5.875,85.128,85.064,0.25]
[1646668954120,45.03981435,85.129,85.07,17.6289]
[1646668954320,45.03981435,85.129,85.071,0.25]
[1646668954522,5.875,85.128,85.071,0.25]
[1646668955524,5.875,85.128,85.071,6.25]
[1646668955727,5.875,85.128,85.071,0.25]
[1646668955925,5.875,85.128,85.064,0.25]
[1646668956224,122.95,85.127,85.064,0.25]
[1646668956425,122.95,85.127,85.063,0.25]
[1646668956426,122.575,85.126,85.063,0.25]
[1646668956624,116.7,85.124,85.02,116.7]
[1646668956825,116.7,85.124,85.0,200.0]
[1646668956826,16.93,85.11,85.03,71.0504]
[1646668957125,37.3503115,85.109,85.03,71.0504]
[1646668957526,0.25,85.108,85.03,71.0504]
[1646668958126,0.25,85.108,85.04,17.636]
[1646668958330,0.25,85.108,85.041,0.25]
[1646668959327,0.25,85.108,85.031,0.25]
[1646668959743,0.25,85.108,85.05,17.6344]
[1646668959943,6.126,85.108,85.051,0.25]
[1646668960144,0.25,85.108,85.051,6.25]
[1646668960743,0.25,85.108,85.052,6.0]
[1646668960947,0.25,85.108,85.053,0.25]
[1646668961143,0.25,85.108,85.051,0.25]
[1646668961546,5.876,85.107,85.051,0.25]
[1646668961744,0.25,85.106,85.051,0.25]
[1646668962144,5.876,85.105,85.041,0.25]
[1646668962345,5.876,85.105,85.041,6.25]
[1646668962545,0.25,85.106,85.05,17.6347]
[1646668962744,0.25,85.108,85.051,0.25]
[1646668962944,5.876,85.107,85.051,0.25]
[1646668963143,0.25,85.106,85.051,0.25]